[Event "Metz op 31th"]
[Site "Metz"]
[Date "2013.04.25"]
[Round "9"]
[White "Degraeve, Jean Marc"]
[Black "Greenfeld, Alon"]
[Result "0-1"]
[ECO "C54"]
[WhiteElo "2567"]
[BlackElo "2545"]
[Annotator "Metz Alekhine/Primel,D"]
[PlyCount "48"]
[EventDate "2013.04.20"]
[EventType "swiss"]
[EventRounds "9"]
[EventCountry "FRA"]
[SourceTitle "EXT 2016"]
[Source "ChessBase"]
[SourceDate "2015.10.08"]
[SourceVersion "1"]
[SourceVersionDate "2015.10.08"]
[SourceQuality "1"]
[TimeControl "40/5400:1800+30"]
[WhiteClock "1:30:00"]
[BlackClock "1:30:00"]

1. e4 e5 2. Nf3 Nc6 3. Bc4 Nf6 4. d3 Bc5 5. O-O (5. c3 {La grande ligne} a6 (
5... d6 6. O-O O-O 7. Bb3 (7. Nbd2)) 6. Bb3 Ba7 7. h3 d5 8. Qe2 O-O 9. Bg5 dxe4
10. dxe4 h6 11. Bh4 Qe7 12. Nbd2 Be6 13. Bc2 g5 14. Bg3 Nd7 15. h4 f6 16. O-O-O
Bg4 $2 {Tiviakov,S (2658)-Sammalvuo,T (2453) Kurdistan op 2nd 2013 (5) 1-0} (
16... g4 $8 17. Nh2 h5 $132)) 5... d6 6. c3 a6 (6... O-O) 7. Bb3 Ba7 8. Nbd2
O-O 9. Re1 (9. h3) (9. Nc4) 9... Ng4 {[%cal Ga7f2,Gf7f5]} 10. Re2 Kh8 11. h3
Nh6 {[%cal Gf7f5]} 12. Nf1 (12. g4 {L'alternative pour empêcher la poussée
f5 mais au détriment d'un sérieux affaiblissement des cases Noires de
l'aile-roi} Nxg4 $1 13. hxg4 Bxg4 14. Nh2 Qh4 $44 {Izmukhambetov,S (2530)
-Aronian,L (2390) RUS-Cup2 Moscow 1996 (2) 1/2-1/2}) 12... f5 $132 13. Bg5 (13.
Bxh6) (13. d4 fxe4 14. Rxe4 d5 15. Bg5 (15. Rxe5 $5 $146 Nxe5 16. Nxe5 Qf6 17.
Be3 $44) 15... dxe4 $13 {Gipslis,A (2465)-Hector,J (2470) BL2-Nord 9798 1997 
(4.1) 1/2-1/2}) (13. Bxh6 gxh6 14. exf5 Bxf5 15. Bd5 Qf6 16. Qd2 Ne7 17. Bxb7
Rab8 18. Be4 Bxh3 19. gxh3 Rg8+ 20. Kh1 d5 21. N1h2 dxe4 22. Rxe4 Ng6 23. Qxh6
Rxb2 24. Nxe5 Rxf2 25. Nxg6+ Qxg6 26. Qxg6 Rxg6 27. d4 Rc2 28. Re3 c5 29. Re7
Bb8 30. Ng4 Rxc3 31. Rb1 Rxh3+ 32. Kg2 Rg3+ 33. Kf2 R3xg4 34. Rxb8+ Rg8 35.
Rxg8+ Kxg8 36. dxc5 Rc4 37. Ra7 Rxc5 38. Rxa6 {1/2-1/2 (38) Vocaturo,D (2581)
-Haslinger,S (2543) Hoogeveen 2010}) 13... Qd7 (13... Qe8 {Plus naturel} 14.
exf5 Nxf5 $132 {Winge,S (2346)-Barkhagen,J (2521) SWE-chT 0405 2004 (4) 0-1})
14. Bxh6 gxh6 15. exf5 Rxf5 $146 (15... Qg7 16. Ne3 Ne7 17. Kh1 Nxf5 18. Ng4
Ne7 {1/2-1/2 (18) Hiermann,D (2310)-Eidner,F (2000) Germany 2008}) 16. Bd5 {
[%csl Gd5][%cal Gd5e4]} Qg7 17. d4 Bd7 18. Ne3 Rh5 (18... Rxf3 19. Bxf3 exd4
$44) 19. dxe5 Bxh3 $1 20. exd6 cxd6 21. Bxc6 bxc6 22. Qxd6 Rf8 {[%csl Rf3]
[%cal Gf8f3]} 23. Qg3 $13 Qxg3 24. fxg3 Bg4 {Suite illisible et gain Noir au
86ème coup.} 0-1

[Event "Tata Steel-A 79th"]
[Site "Wijk aan Zee"]
[Date "2017.01.21"]
[Round "7"]
[White "So, Wesley"]
[Black "Eljanov, Pavel"]
[Result "1/2-1/2"]
[ECO "C54"]
[WhiteElo "2808"]
[BlackElo "2755"]
[Annotator "Yermolinsky,A"]
[PlyCount "75"]
[EventDate "2017.01.14"]
[EventType "tourn"]
[EventRounds "13"]
[EventCountry "NED"]
[EventCategory "21"]
[SourceTitle "CBM 177"]
[Source "ChessBase"]
[SourceDate "2017.03.16"]
[SourceVersion "1"]
[SourceVersionDate "2017.03.16"]
[SourceQuality "1"]
[TimeControl "40/6000+30:20/3000+30:900+30"]

1. e4 {[%emt 0:00:00]} e5 {[%emt 0:00:35]} 2. Nf3 {[%emt 0:00:00]} Nc6 {
[%emt 0:00:05]} 3. Bc4 {[%emt 0:00:00]} Bc5 {[%emt 0:00:16]} 4. O-O {[%emt 0:
00:00]} Nf6 {[%emt 0:00:05]} 5. d3 {[%emt 0:00:04]} d6 {[%emt 0:01:55]} 6. c3 {
[%emt 0:00:12]} a6 {[%emt 0:00:09]} 7. a4 {[%emt 0:00:24]} Ba7 {[%emt 0:01:01]}
8. Na3 {[%emt 0:01:07]} (8. Re1 h6 9. Na3 O-O 10. Nc2 Ne7 11. Be3 Bxe3 12. Nxe3
c6 13. a5 d5 14. Bb3 Ng6 15. exd5 cxd5 16. d4 e4 17. Ne5 Ne7 18. f3 Be6 19.
fxe4 Nxe4 20. Nxd5 Bxd5 21. Bxd5 Qxd5 22. c4 Qe6 23. Rxe4 f6 24. Qg4 f5 25. Qh3
Nc6 26. Rd1 Rad8 27. Nxc6 Qxc6 28. Re7 Qxc4 29. Qc3 Qxc3 30. bxc3 Rf7 31. Rxf7
Kxf7 32. Rb1 Rd7 33. Kf2 Rc7 34. Rb3 f4 35. Kf3 g5 36. Ke4 Kg6 37. Rb6+ Kh5 {
Carlsen,M (2840)-Inarkiev,E (2709) Doha 2016 1-0}) 8... h6 {[%emt 0:07:13]} 9.
Nc2 {[%emt 0:00:37]} Qe7 $146 {[%emt 0:05:20]} (9... O-O 10. Be3 Bxe3 11. Nxe3
Ne7 12. Qc2 c6 13. d4 exd4 14. Nxd4 Bd7 15. a5 c5 16. Nb3 b5 17. axb6 Qxb6 18.
Rfd1 Rfd8 19. Nd2 Bc6 20. Bf1 a5 21. g3 d5 22. exd5 Nexd5 23. Nec4 Qc7 24. Nb3
a4 25. Nbd2 Nb6 26. Ne3 a3 27. b3 Qe5 28. Bg2 Bxg2 29. Kxg2 Nbd5 30. Nxd5 Rxd5
31. Nc4 Rxd1 32. Qxd1 Qxc3 33. Rxa3 Re8 34. Qf3 Qd4 35. Ra8 Rxa8 36. Qxa8+ Kh7
37. Qf3 Kg8 38. Qa8+ Kh7 39. Qf3 {Cornette,M (2597)-Bacrot,E (2689) London
2016 1/2-1/2 (63)}) 10. Be3 {[%emt 0:01:31]} Be6 {[%emt 0:09:20]} 11. Bxe6 {
[%emt 0:00:55]} Qxe6 {[%emt 0:02:44]} 12. Bxa7 {[%emt 0:01:40]} Rxa7 {[%emt 0:
00:15]} 13. d4 {[%emt 0:00:58]} Ne7 {[%emt 0:01:47]} 14. Nd2 {[%emt 0:12:42]}
O-O {[%emt 0:02:04]} 15. Qe2 {[%emt 0:00:09]} Raa8 {[%emt 0:03:26]} 16. g3 {
[%emt 0:04:50]} Rfe8 {[%emt 0:06:20]} 17. a5 {[%emt 0:06:06]} Rac8 {[%emt 0:20:
20]} 18. d5 {[%emt 0:11:39]} Qd7 {[%emt 0:01:44]} 19. Ne3 {[%emt 0:01:18]} Nh7
{[%emt 0:07:25]} 20. Ra3 {[%emt 0:04:21]} Rf8 {[%emt 0:05:23]} 21. Rb3 {
[%emt 0:05:09]} Rb8 {[%emt 0:00:11]} 22. Ra1 {[%emt 0:00:37]} f5 {[%emt 0:03:
54]} 23. exf5 {[%emt 0:00:11]} Nxf5 {[%emt 0:00:39]} 24. Qg4 {[%emt 0:01:30]}
h5 {[%emt 0:02:25]} 25. Qxh5 {[%emt 0:18:23]} Nxe3 {[%emt 0:00:06]} 26. fxe3 {
[%emt 0:00:03]} Rf5 {[%emt 0:00:29]} 27. Qh4 {[%emt 0:06:58] Although he took
it sportingly, White missed a chance to obtain a decisive advantage three
straight moves with the same shot.} Ng5 {[%emt 0:07:57]} (27... Rbf8 $1 28. g4
R5f6 29. c4 Qe7 {threatening Rf1+ with a discovered attack on the queen.} 30.
Qg3 Qf7 {and Black's attack becomes unstoppable.}) 28. Rb4 {[%emt 0:10:31]} e4
{[%emt 0:04:02]} (28... Rbf8 $1 29. Rg4 Nh7 30. c4 Qf7 31. Qh3 Ng5 {and again
Black's advantage should be decisive.}) 29. Kg2 {[%emt 0:07:49]} Qf7 {[%emt 0:
08:09]} ({This was the most definitive as th king exposed on g2 means the Rf2+
threat has that much more bite.} 29... Rbf8 $1 30. Nxe4 Nf3 31. Qh3 Qe8 32. Qg4
Qf7 {and Black is winning.}) 30. Nxe4 {[%emt 0:01:03]} Qxd5 {[%emt 0:02:44]} (
30... Nf3 {was the last chance to keep the edge.} 31. Qh3 Qxd5) 31. Rd4 {
[%emt 0:00:52]} Nf3 {[%emt 0:04:09]} 32. Nf6+ {[%emt 0:01:06]} Rxf6 {[%emt 0:
00:04]} 33. Rxd5 {[%emt 0:00:03]} Nxh4+ {[%emt 0:00:05]} 34. gxh4 {[%emt 0:00:
04]} Rbf8 {[%emt 0:00:21]} 35. Rd2 {[%emt 0:00:39]} Rg6+ {[%emt 0:00:31]} 36.
Kh1 {[%emt 0:00:05]} Rf3 {[%emt 0:00:42]} 37. Re1 {[%emt 0:02:09]} Re6 {
[%emt 0:00:23]} 38. Rd4 {[%emt 0:00:37]} 1/2-1/2